fUST/lending_fUST_20240121
["ID","MTS","AMOUNT","RATE_DAILY","PERIOD"]
[312319962,1705771853336,-524.05,0.00041369,31]
[312319963,1705771853345,-500.0,0.00041369,31]
[312319964,1705771853354,-151.0,0.00041369,7]
[312319965,1705771853362,-5284.477652,0.00041369,7]
[312319966,1705771853372,-5284.477652,0.00041369,7]
[312319967,1705771853381,-151.0,0.00041369,7]
[312319968,1705771853390,-1002.675451,0.00041369,7]
[312319969,1705771853399,-1002.675451,0.00041369,7]
[312319970,1705771853408,-160.0,0.0004137,90]
[312319971,1705771853417,-159.57600549,0.00041401,30]
[312319972,1705771853426,-777.0,0.000415,4]
[312319973,1705771853435,-357.313658,0.00041543,7]
[312319974,1705771853443,-357.313658,0.00041543,7]
[312319975,1705771853453,-169.798278,0.00041543,7]
[312319976,1705771853462,-500.0,0.00041643,31]
[312319977,1705771853471,-500.0,0.00041643,31]
[312319978,1705771853480,-500.0,0.00041643,7]
[312319979,1705771853489,-500.0,0.00041643,31]
[312319980,1705771853498,-500.0,0.00041643,31]
[312319981,1705771853508,-500.0,0.00041643,7]
[312319982,1705771853517,-500.0,0.00041643,31]
[312319983,1705771853526,-500.0,0.00041643,31]
[312319984,1705771853535,-1200.76,0.00041643,31]
[312319985,1705771853544,-500.0,0.00041643,31]
[312319986,1705771853555,-500.0,0.00041643,31]
[312319987,1705771853567,-500.0,0.00041643,31]
[312319988,1705771853576,-500.0,0.00041643,31]
[312319989,1705771853585,-500.0,0.00041643,31]
[312319990,1705771853595,-500.0,0.00041643,31]
[312319991,1705771853604,-500.0,0.00041643,31]
[312319992,1705771853613,-500.0,0.00041643,31]
[312319993,1705771853623,-500.0,0.00041643,31]
[312319994,1705771853632,-747.09,0.00041643,31]
[312319995,1705771853642,-500.0,0.00041643,31]
[312319996,1705771853651,-500.0,0.00041643,31]
[312319997,1705771853660,-500.0,0.00041643,31]
[312319998,1705771853670,-500.0,0.00041643,31]
[312319999,1705771853679,-667.38,0.00041643,31]
[312320000,1705771853688,-500.0,0.00041643,31]
[312320001,1705771853697,-500.0,0.00041643,31]
[312320002,1705771853706,-500.0,0.00041643,31]
[312320003,1705771853715,-521.74,0.00041643,31]
[312320004,1705771853724,-471.06298319,0.00041643,31]
[312320005,1705771853734,-500.0,0.00041643,31]
[312320006,1705771853743,-500.0,0.00041643,31]
[312320007,1705771853752,-500.0,0.00041643,31]
[312320008,1705771853762,-506.02539175,0.00041643,31]
[312320009,1705771853771,-420.70834369,0.00041643,31]
[312320010,1705771853780,-1000.0,0.00041643,2]
[312320011,1705771853789,-500.0,0.00041643,31]
[312320012,1705771853798,-500.0,0.00041643,31]
[312320013,1705771853807,-618.39,0.00041643,31]
[312320014,1705771853816,-500.0,0.00041643,31]
[312320015,1705771853826,-504.03707405,0.00041643,31]
[312320016,1705771853835,-721.31,0.00041643,31]
[312320017,1705771853844,-500.0,0.00041643,31]
[312320018,1705771853853,-500.0,0.00041643,31]
[312320019,1705771853863,-500.0,0.00041643,31]
[312320020,1705771853873,-500.0,0.00041643,31]
[312320021,1705771853882,-500.0,0.00041643,31]
[312320022,1705771853891,-583.96,0.00041643,31]
[312320023,1705771853901,-500.0,0.00041643,31]
[312320024,1705771853910,-500.0,0.00041643,31]
[312320025,1705771853919,-500.0,0.00041643,31]
[312320026,1705771853928,-500.0,0.00041643,31]
[312320027,1705771853937,-500.0,0.00041643,31]
[312320028,1705771853946,-500.0,0.00041643,31]
[312320029,1705771853955,-180.37324536,0.00041643,31]
[312320030,1705771853964,-500.0,0.00041643,14]
[312320031,1705771853973,-708.55,0.00041643,31]
[312320032,1705771853982,-500.0,0.00041643,31]
[312320033,1705771853991,-500.0,0.00041643,31]
[312320034,1705771854000,-500.0,0.00041643,31]
[312320035,1705771854009,-500.0,0.00041643,31]
[312320036,1705771854019,-607.42,0.00041643,31]
[312320037,1705771854028,-500.0,0.00041643,31]
[312320038,1705771854038,-500.0,0.00041643,31]
[312320039,1705771854047,-200.0,0.00041643,31]
[312320040,1705771854057,-500.0,0.00041643,31]
[312320041,1705771854066,-687.89,0.00041643,31]
[312320042,1705771854075,-633.8728857,0.00041643,7]
[312320043,1705771854084,-500.0,0.00041643,31]
[312320044,1705771854093,-500.0,0.00041643,31]
[312320045,1705771854102,-500.0,0.00041643,31]
[312320046,1705771854112,-688.15,0.00041643,31]
[312320047,1705771854121,-500.0,0.00041643,31]
[312320048,1705771854130,-500.0,0.00041643,31]
[312320049,1705771854219,-500.0,0.00041643,31]
[312320050,1705771854229,-500.0,0.00041643,31]
[312320051,1705771854238,-544.73,0.00041643,31]
[312320052,1705771854247,-500.0,0.00041643,31]
[312320053,1705771854257,-500.0,0.00041643,31]
[312320054,1705771854266,-1391.5,0.00041643,31]
[312320055,1705771854275,-500.0,0.00041643,31]
[312320056,1705771854284,-500.0,0.00041643,31]
[312320057,1705771854293,-213.12327715,0.00041643,31]
[312320058,1705771854302,-500.0,0.00041643,31]
[312320059,1705771854310,-500.0,0.00041643,31]
[312320060,1705771854319,-500.0,0.00041643,31]
[312320061,1705771854328,-500.0,0.00041643,31]
[312320062,1705771854338,-520.46,0.00041643,31]
[312320063,1705771854347,-500.0,0.00041643,31]
[312320064,1705771854356,-500.0,0.00041643,31]
[312320065,1705771854366,-503.61348739,0.00041643,31]
[312320066,1705771854375,-500.0,0.00041643,31]
[312320067,1705771854385,-500.0,0.00041643,31]
[312320068,1705771854393,-500.0,0.00041643,31]
[312320069,1705771854402,-500.0,0.00041643,31]
[312320070,1705771854411,-568.38,0.00041643,31]
[312320071,1705771854420,-500.0,0.00041643,31]
[312320072,1705771854429,-500.0,0.00041643,31]
[312320073,1705771854439,-500.0,0.00041643,31]
[312320074,1705771854448,-500.0,0.00041643,31]
[312320075,1705771854457,-410.04767553,0.00041643,31]
[312320076,1705771854466,-500.0,0.00041643,31]
[312320077,1705771854475,-500.0,0.00041643,31]
[312320078,1705771854484,-704.37,0.00041643,31]
[312320079,1705771854493,-1075.94629025,0.00041643,2]
[312320080,1705771854502,-150.0,0.00041643,31]
[312320081,1705771854511,-500.0,0.00041643,31]
[312320082,1705771854521,-500.0,0.00041643,31]
[312320083,1705771854530,-500.0,0.00041643,31]
[312320084,1705771854539,-537.68092668,0.00041643,31]
[312320085,1705771854548,-707.0,0.00041643,31]
[312320086,1705771854560,-502.59479569,0.00041643,31]
[312320087,1705771854569,-500.0,0.00041643,31]
[312320088,1705771854579,-709.09,0.00041643,31]
[312320089,1705771854588,-503.73611034,0.00041643,31]
[312320090,1705771854599,-711.36,0.00041643,31]
[312320091,1705771854608,-745.04,0.00041643,31]
[312320092,1705771854618,-500.0,0.00041643,31]
[312320093,1705771854627,-500.0,0.00041643,31]
[312320094,1705771854637,-500.0,0.00041643,31]
[312320095,1705771854647,-500.0,0.00041643,31]
[312320096,1705771854656,-533.35486529,0.00041643,31]
[312320097,1705771854666,-500.0,0.00041643,31]
[312320098,1705771854675,-520.50316887,0.00041643,31]
[312320099,1705771854685,-695.1,0.00041643,31]
[312320100,1705771854693,-500.0,0.00041643,31]
[312320101,1705771854703,-500.9349005,0.00041643,31]
[312320102,1705771854713,-593.77,0.00041643,31]
[312320103,1705771854724,-544.34,0.00041643,31]
[312320104,1705771854733,-500.0,0.00041643,31]
[312320105,1705771854743,-1201.37,0.00041643,31]
[312320106,1705771854752,-500.0,0.00041643,31]
[312320107,1705771854762,-500.0,0.00041643,31]
[312320108,1705771854771,-500.0,0.00041643,31]
[312320109,1705771854780,-500.0,0.00041643,31]
[312320110,1705771854790,-500.0,0.00041643,31]
[312320111,1705771854799,-500.0,0.00041643,31]
[312320112,1705771854808,-500.0,0.00041643,31]
[312320113,1705771854817,-928.99,0.00041643,31]
[312320114,1705771854826,-500.0,0.00041643,31]
[312320115,1705771854836,-704.85,0.00041643,31]
[312320116,1705771854845,-2382.64,0.00041643,31]
[312320117,1705771854854,-500.0,0.00041643,31]
[312320118,1705771854863,-500.0,0.00041643,31]
[312320119,1705771854873,-500.0,0.00041643,31]
[312320120,1705771854882,-500.0,0.00041643,31]
[312320121,1705771854891,-3230.88,0.00041643,31]
[312320122,1705771854900,-1689.43,0.00041643,31]
[312320123,1705771854909,-1000.0,0.00041643,2]
[312320124,1705771854918,-500.0,0.00041643,31]
[312320125,1705771854927,-500.0,0.00041643,31]
[312320126,1705771854937,-434.75791061,0.00041643,31]
[312320127,1705771854946,-500.0,0.00041643,31]
[312320128,1705771854955,-270.74656771,0.00041643,31]
[312320129,1705771854964,-500.0,0.00041643,31]
[312320130,1705771854973,-500.0,0.00041643,31]
[312320131,1705771854982,-500.0,0.00041643,2]
[312320132,1705771854992,-500.0,0.00041643,31]
[312320133,1705771855000,-500.0,0.00041643,31]
[312320134,1705771855010,-221.60056194,0.00041643,31]
[312320135,1705771855019,-1089.14,0.00041643,31]
[312320136,1705771855028,-500.0,0.00041643,31]
[312320137,1705771855037,-500.0,0.00041643,31]
[312320138,1705771855046,-500.0,0.00041643,31]
[312320139,1705771855055,-500.0,0.00041643,20]
[312320140,1705771855064,-500.0,0.00041643,31]
[312320141,1705771855074,-820.67,0.00041643,31]
[312320142,1705771855083,-848.28,0.00041643,31]
[312320143,1705771855092,-1393.43,0.00041643,31]
[312320144,1705771855101,-500.0,0.00041643,31]
[312320145,1705771855110,-1633.61,0.00041643,31]
[312320146,1705771855119,-500.0,0.00041643,31]
[312320147,1705771855128,-500.0,0.00041643,31]
[312320148,1705771855138,-500.0,0.00041643,31]
[312320149,1705771855147,-678.24,0.00041643,31]
[312320150,1705771855155,-774.42,0.00041643,31]
[312320151,1705771855164,-500.0,0.00041643,31]
[312320152,1705771855173,-500.0,0.00041643,31]
[312320153,1705771855182,-738.56,0.00041643,31]
[312320154,1705771855191,-622.01,0.00041643,31]
[312320155,1705771855199,-500.0,0.00041643,31]
[312320156,1705771855209,-2637.91,0.00041643,31]
[312320157,1705771855218,-2091.45,0.00041643,31]
[312320158,1705771855227,-500.0,0.00041643,31]
[312320159,1705771855235,-500.0,0.00041643,31]
[312320160,1705771855244,-5731.31,0.00041643,31]
[312320161,1705771855253,-731.71,0.00041643,31]
[312320162,1705771855262,-30210.12,0.00041643,14]
[312320163,1705771855270,-500.0,0.00041643,31]
[312320164,1705771855279,-500.0,0.00041643,31]
[312320165,1705771855288,-500.0,0.00041643,31]
[312320166,1705771855297,-1111.57,0.00041643,31]
[312320167,1705771855306,-500.0,0.00041643,31]
[312320168,1705771855315,-500.0,0.00041643,31]
[312320169,1705771855324,-500.0,0.00041643,31]
[312320170,1705771855333,-2232.2,0.00041643,31]
[312320171,1705771855342,-500.0,0.00041643,31]
[312320172,1705771855351,-922.45,0.00041643,31]
[312320173,1705771855360,-1489.44,0.00041643,31]
[312320174,1705771855370,-500.0,0.00041643,31]
[312320175,1705771855379,-531.35,0.00041643,31]
[312320176,1705771855388,-500.0,0.00041643,31]
[312320177,1705771855397,-500.0,0.00041643,31]
[312320178,1705771855407,-10043.09,0.00041643,31]
[312320179,1705771855415,-500.0,0.00041643,31]
[312320180,1705771855424,-1427.62,0.00041643,31]
[312320181,1705771855433,-500.0,0.00041643,31]
[312320182,1705771855442,-500.0,0.00041643,31]
[312320183,1705771855452,-3336.41,0.00041643,31]
[312320184,1705771855461,-500.0,0.00041643,31]
[312320185,1705771855470,-500.0,0.00041643,31]
[312320186,1705771855479,-500.0,0.00041643,31]
[312320187,1705771855488,-500.0,0.00041643,31]
[312320188,1705771855497,-500.0,0.00041643,31]
[312320189,1705771855506,-500.0,0.00041643,31]
[312320190,1705771855515,-16367.75,0.00041643,31]
[312320191,1705771855524,-500.0,0.00041643,31]
[312320192,1705771855534,-500.0,0.00041643,31]
[312320193,1705771855544,-866.48,0.00041643,31]
[312320194,1705771855557,-1235.66,0.00041643,31]
[312320195,1705771855566,-8056.49,0.00041643,31]
[312320196,1705771855576,-518.51035066,0.00041643,31]
[312320197,1705771855585,-500.0,0.00041643,31]
[312320198,1705771855594,-500.0,0.00041643,31]
[312320199,1705771855680,-292.51575049,0.00041643,31]
[312320200,1705771855690,-500.0,0.00041643,31]
[312320201,1705771855700,-503.28345225,0.00041643,31]
[312320202,1705771855709,-500.0,0.00041643,31]
[312320203,1705771855719,-500.0,0.00041643,31]
[312320204,1705771855728,-6257.57,0.00041643,31]
[312320205,1705771855737,-536.97934018,0.00041643,31]
[312320206,1705771855747,-1009.53,0.00041643,7]
[312320207,1705771855757,-1684.52,0.00041643,31]
[312320208,1705771855766,-8470.71,0.00041643,31]
[312320209,1705771855775,-500.0,0.00041643,31]
[312320210,1705771855785,-500.0,0.00041643,31]
[312320211,1705771855794,-500.0,0.00041643,31]
[312320212,1705771855804,-2358.56,0.00041643,31]
[312320213,1705771855814,-500.0,0.00041643,31]
[312320214,1705771855823,-500.0,0.00041643,31]
[312320215,1705771855833,-500.0,0.00041643,31]
[312320216,1705771855842,-1730.17,0.00041643,31]
[312320217,1705771855852,-500.0,0.00041643,31]
[312320218,1705771855861,-500.0,0.00041643,31]
[312320219,1705771855872,-500.0,0.00041643,31]
[312320220,1705771855881,-500.0,0.00041643,31]
[312320221,1705771855890,-500.0,0.00041643,31]
[312320222,1705771855899,-500.0,0.00041643,31]
[312320223,1705771855909,-215.98001688,0.00041643,31]
[312320224,1705771855918,-1140.46,0.00041643,31]
[312320225,1705771855927,-500.0,0.00041643,31]
[312320226,1705771855936,-500.0,0.00041643,31]
[312320227,1705771855946,-500.0,0.00041643,31]
[312320228,1705771855956,-500.0,0.00041643,31]
[312320229,1705771855965,-534.13,0.00041643,31]
[312320230,1705771855974,-500.0,0.00041643,31]
[312320231,1705771855983,-500.0,0.00041643,31]
[312320232,1705771855993,-1000.0,0.00041643,2]
[312320233,1705771856002,-500.0,0.00041643,31]
[312320234,1705771856011,-500.0,0.00041643,31]
[312320235,1705771856021,-500.0,0.00041643,31]
[312320236,1705771856030,-500.0,0.00041643,31]
[312320237,1705771856039,-500.0,0.00041643,31]
[312320238,1705771856048,-500.0,0.00041643,31]
[312320239,1705771856057,-500.0,0.00041643,31]
[312320240,1705771856066,-899.33,0.00041643,31]
[312320241,1705771856076,-1436.63,0.00041643,31]
[312320242,1705771856086,-1738.97,0.00041643,31]
[312320243,1705771856095,-500.0,0.00041643,7]
[312320244,1705771856104,-1526.22,0.00041643,31]
[312320245,1705771856113,-500.0,0.00041643,31]
[312320246,1705771856123,-685.46,0.00041643,31]
[312320247,1705771856133,-500.0,0.00041643,31]
[312320248,1705771856142,-500.0,0.00041643,31]
[312320249,1705771856152,-500.0,0.00041643,31]
[312320250,1705771856161,-500.0,0.00041643,31]
[312320251,1705771856170,-1202.86,0.00041643,31]
[312320252,1705771856179,-500.0,0.00041643,31]
[312320253,1705771856188,-500.0,0.00041643,31]
[312320254,1705771856197,-501.68079899,0.00041643,31]
[312320255,1705771856207,-850.85,0.00041643,31]
[312320256,1705771856216,-500.0,0.00041643,31]
[312320257,1705771856225,-524.05,0.00041643,31]
[312320258,1705771856235,-151.0,0.00041643,7]
[312320259,1705771856244,-151.0,0.00041643,7]
[312320260,1705771856254,-1002.675451,0.00041643,7]
[312320261,1705771856263,-1002.675451,0.00041643,7]
[312320262,1705771856272,-1500.0,0.000417,3]
[312320263,1705771856281,-151.0,0.00041739,21]
[312320264,1705771856290,-151.0,0.00041917,7]
[312320265,1705771856300,-151.0,0.00041917,7]
[312320266,1705771856309,-151.0,0.00041917,7]
[312320267,1705771856318,-357.313658,0.00041917,7]
[312320268,1705771856327,-357.313658,0.00041917,7]
[312320269,1705771856336,-151.0,0.00041917,7]
[312320270,1705771856345,-5284.477652,0.00041917,7]
[312320271,1705771856354,-5284.477652,0.00041917,7]
[312320272,1705771856363,-575.73151995,0.00041917,31]
[312320273,1705771856373,-500.0,0.00041917,31]
[312320274,1705771856382,-500.0,0.00041917,7]
[312320275,1705771856391,-500.0,0.00041917,31]
[312320276,1705771856400,-500.0,0.00041917,31]
[312320277,1705771856409,-500.0,0.00041917,7]
[312320278,1705771856418,-500.0,0.00041917,31]
[312320279,1705771856428,-391.45695946,0.00041917,31]
[312320280,1705771856437,-1200.76,0.00041917,31]
[312320281,1705771856446,-500.0,0.00041917,31]
[312320282,1705771856455,-500.0,0.00041917,31]
[312320283,1705771856465,-500.0,0.00041917,31]
[312320284,1705771856473,-500.0,0.00041917,31]
[312320285,1705771856483,-500.0,0.00041917,31]
[312320286,1705771856491,-486.10112888,0.00041917,31]
[312320287,1705771856501,-500.0,0.00041917,31]
[312320288,1705771856510,-500.0,0.00041917,31]
[312320289,1705771856519,-500.0,0.00041917,31]
[312320290,1705771856529,-747.09,0.00041917,31]
[312320291,1705771856538,-500.0,0.00041917,31]
[312320292,1705771856547,-500.0,0.00041917,31]
[312320293,1705771856558,-500.0,0.00041917,31]
[312320294,1705771856569,-500.0,0.00041917,31]
[312320295,1705771856578,-667.38,0.00041917,31]
[312320296,1705771856588,-419.14826623,0.00041917,31]
[312320297,1705771856597,-500.0,0.00041917,31]
[312320298,1705771856607,-500.0,0.00041917,31]
[312320299,1705771856616,-521.74,0.00041917,31]
[312320300,1705771856627,-500.0,0.00041917,31]
[312320301,1705771856637,-500.0,0.00041917,31]
[312320302,1705771856647,-500.0,0.00041917,31]
[312320303,1705771856657,-1000.0,0.00041917,2]
[312320304,1705771856666,-500.0,0.00041917,31]
[312320305,1705771856675,-353.72820761,0.00041917,31]
[312320306,1705771856685,-618.39,0.00041917,31]
[312320307,1705771856695,-500.0,0.00041917,31]
[312320308,1705771856704,-721.31,0.00041917,31]
[312320309,1705771856713,-500.0,0.00041917,31]
[312320310,1705771856722,-500.0,0.00041917,31]
[312320311,1705771856733,-500.0,0.00041917,31]
[312320312,1705771856742,-500.0,0.00041917,31]
[312320313,1705771856751,-500.0,0.00041917,31]
[312320314,1705771856761,-583.96,0.00041917,31]
[312320315,1705771856770,-500.0,0.00041917,31]
[312320316,1705771856779,-500.0,0.00041917,31]
[312320317,1705771856789,-453.49835968,0.00041917,31]
[312320318,1705771856798,-500.0,0.00041917,31]
[312320319,1705771856807,-505.15855341,0.00041917,31]
[312320320,1705771856816,-500.0,0.00041917,31]
[312320321,1705771856825,-500.0,0.00041917,14]
[312320322,1705771856835,-500.0,0.00041917,31]
[312320323,1705771856845,-708.55,0.00041917,31]
[312320324,1705771856853,-500.0,0.00041917,31]
[312320325,1705771856862,-500.0,0.00041917,31]
[312320326,1705771856873,-500.0,0.00041917,31]
[312320327,1705771856882,-607.42,0.00041917,31]
[312320328,1705771856891,-500.0,0.00041917,31]
[312320329,1705771856900,-500.0,0.00041917,31]
[312320330,1705771856910,-238.33083095,0.00041917,31]
[312320331,1705771856919,-376.89595033,0.00041917,31]
[312320332,1705771856928,-687.89,0.00041917,31]
[312320333,1705771856937,-500.0,0.00041917,31]
[312320334,1705771856947,-500.0,0.00041917,31]
[312320335,1705771856955,-500.0,0.00041917,31]
[312320336,1705771856965,-688.15,0.00041917,31]
[312320337,1705771856974,-500.0,0.00041917,31]
[312320338,1705771857055,-500.0,0.00041917,31]
[312320339,1705771857065,-500.0,0.00041917,31]
[312320340,1705771857074,-500.0,0.00041917,31]
[312320341,1705771857083,-544.73,0.00041917,31]
[312320342,1705771857092,-500.0,0.00041917,31]
[312320343,1705771857101,-511.95301418,0.00041917,31]
[312320344,1705771857110,-1391.5,0.00041917,31]
[312320345,1705771857121,-500.0,0.00041917,31]
[312320346,1705771857129,-500.0,0.00041917,31]
[312320347,1705771857138,-500.0,0.00041917,31]
[312320348,1705771857147,-593.17490822,0.00041917,31]
[312320349,1705771857156,-500.0,0.00041917,31]
[312320350,1705771857165,-500.0,0.00041917,31]
[312320351,1705771857175,-520.46,0.00041917,31]
[312320352,1705771857185,-500.0,0.00041917,31]
[312320353,1705771857193,-534.26920257,0.00041917,31]
[312320354,1705771857202,-500.0,0.00041917,31]
[312320355,1705771857211,-500.0,0.00041917,31]
[312320356,1705771857220,-500.0,0.00041917,31]
[312320357,1705771857228,-500.0,0.00041917,31]
[312320358,1705771857237,-568.38,0.00041917,31]
[312320359,1705771857246,-500.0,0.00041917,31]
[312320360,1705771857256,-500.0,0.00041917,31]
[312320361,1705771857265,-500.0,0.00041917,31]
[312320362,1705771857274,-471.10871126,0.00041917,31]
[312320363,1705771857283,-500.0,0.00041917,31]
[312320364,1705771857292,-500.0,0.00041917,31]
[312320365,1705771857301,-704.37,0.00041917,31]
[312320366,1705771857310,-150.0,0.00041917,31]
[312320367,1705771857319,-162.43311866,0.00041917,31]
[312320368,1705771857328,-213.25991066,0.00041917,31]
[312320369,1705771857337,-500.0,0.00041917,31]
[312320370,1705771857346,-707.0,0.00041917,31]
[312320371,1705771857355,-500.0,0.00041917,31]
[312320372,1705771857364,-709.09,0.00041917,31]
[312320373,1705771857374,-711.36,0.00041917,31]
[312320374,1705771857384,-745.04,0.00041917,31]
[312320375,1705771857393,-293.70302477,0.00041917,31]
[312320376,1705771857402,-500.0,0.00041917,31]
[312320377,1705771857411,-500.0,0.00041917,31]
[312320378,1705771857420,-500.0,0.00041917,31]
[312320379,1705771857429,-258.24816206,0.00041917,31]
[312320380,1705771857438,-695.1,0.00041917,31]
[312320381,1705771857447,-500.0,0.00041917,31]
[312320382,1705771857457,-593.77,0.00041917,31]
[312320383,1705771857466,-544.34,0.00041917,31]
[312320384,1705771857475,-527.69196249,0.00041917,31]
[312320385,1705771857483,-1201.37,0.00041917,31]
[312320386,1705771857493,-500.0,0.00041917,31]
[312320387,1705771857502,-500.0,0.00041917,31]
[312320388,1705771857511,-500.0,0.00041917,31]
[312320389,1705771857520,-553.72964361,0.00041917,31]
[312320390,1705771857529,-500.0,0.00041917,31]
[312320391,1705771857538,-500.0,0.00041917,31]
[312320392,1705771857548,-500.0,0.00041917,31]
[312320393,1705771857560,-928.99,0.00041917,31]
[312320394,1705771857570,-277.13212842,0.00041917,31]
[312320395,1705771857580,-704.85,0.00041917,31]
[312320396,1705771857589,-2382.64,0.00041917,31]
[312320397,1705771857598,-500.0,0.00041917,31]
[312320398,1705771857608,-500.0,0.00041917,31]
[312320399,1705771857618,-500.0,0.00041917,31]
[312320400,1705771857628,-500.0,0.00041917,31]
[312320401,1705771857640,-3230.88,0.00041917,31]
[312320402,1705771857653,-1689.43,0.00041917,31]
[312320403,1705771857674,-1030.17679862,0.00041917,2]
[312320404,1705771857689,-500.0,0.00041917,31]
[312320405,1705771857706,-500.0,0.00041917,31]
[312320406,1705771857724,-261.2218045,0.00041917,31]
[312320407,1705771857739,-500.0,0.00041917,31]
[312320408,1705771857756,-500.0,0.00041917,31]
[312320409,1705771857771,-500.0,0.00041917,2]
[312320410,1705771857787,-500.0,0.00041917,31]
[312320411,1705771857802,-500.0,0.00041917,31]
[312320412,1705771857819,-1089.14,0.00041917,31]
[312320413,1705771857834,-500.0,0.00041917,31]
[312320414,1705771857850,-503.50359961,0.00041917,31]
[312320415,1705771857868,-500.0,0.00041917,20]
[312320416,1705771857884,-500.0,0.00041917,31]
[312320417,1705771857895,-820.67,0.00041917,31]
[312320418,1705771857911,-848.28,0.00041917,31]
[312320419,1705771857934,-1393.43,0.00041917,31]
[312320420,1705771857946,-514.56391573,0.00041917,31]
[312320421,1705771857960,-1633.61,0.00041917,31]
[312320422,1705771857974,-500.0,0.00041917,31]
[312320423,1705771857987,-500.0,0.00041917,31]
[312320424,1705771858000,-500.0,0.00041917,31]
[312320425,1705771858014,-678.24,0.00041917,31]
[312320426,1705771858028,-774.42,0.00041917,31]
[312320427,1705771858043,-500.0,0.00041917,31]
[312320428,1705771858056,-500.0,0.00041917,31]
[312320429,1705771858071,-738.56,0.00041917,31]
[312320430,1705771858089,-622.01,0.00041917,31]
[312320431,1705771858113,-500.0,0.00041917,31]
[312320432,1705771858127,-2637.91,0.00041917,31]
[312320433,1705771858141,-2091.45,0.00041917,31]
[312320434,1705771858154,-500.0,0.00041917,31]
[312320435,1705771858167,-500.0,0.00041917,31]
[312320436,1705771858181,-5731.31,0.00041917,31]
[312320437,1705771858194,-30210.12,0.00041917,14]
[312320438,1705771858207,-731.71,0.00041917,31]
[312320439,1705771858220,-308.15524225,0.00041917,31]
[312320440,1705771858233,-500.0,0.00041917,31]
[312320441,1705771858246,-1111.57,0.00041917,31]
[312320442,1705771858260,-500.0,0.00041917,31]
[312320443,1705771858273,-500.0,0.00041917,31]
[312320444,1705771858286,-502.66870992,0.00041917,31]
[312320445,1705771858300,-2232.2,0.00041917,31]
[312320446,1705771858313,-304.16938774,0.00041917,31]
[312320447,1705771858326,-922.45,0.00041917,31]
[312320448,1705771858338,-1489.44,0.00041917,31]
[312320449,1705771858352,-500.0,0.00041917,31]
[312320450,1705771858365,-531.35,0.00041917,31]
[312320451,1705771858378,-500.0,0.00041917,31]
[312320452,1705771858391,-10043.09,0.00041917,31]
[312320453,1705771858403,-500.0,0.00041917,31]
[312320454,1705771858416,-1427.62,0.00041917,31]
[312320455,1705771858430,-500.0,0.00041917,31]
[312320456,1705771858443,-500.0,0.00041917,31]
[312320457,1705771858459,-3336.41,0.00041917,31]
[312320458,1705771858474,-500.0,0.00041917,31]
[312320459,1705771858493,-500.0,0.00041917,31]
[312320460,1705771858502,-500.0,0.00041917,31]
[312320461,1705771858511,-500.0,0.00041917,31]